bitfinex/quotes_ETHUSD_20240722
["timestamp","ask_amount","ask_price","bid_price","bid_amount"]
[1721627880048,5.14649,3503.0,3502.8,0.03816528]
[1721627880252,5.14649,3503.0,3502.7,0.03820495]
[1721627880567,2.85453,3503.2,3502.4,0.59909463]
[1721627880749,5.20264,3502.9,3502.5,2.4814651]
[1721627880921,2.3478,3502.8,3502.6,0.99258604]
[1721627881251,2.3478,3502.3,3502.0,0.59909463]
[1721627881452,2.3478,3502.2,3501.8,0.59909463]
[1721627881757,2.3478,3502.2,3501.9,0.99277324]
[1721627881916,2.3478,3502.2,3501.7,0.59909463]
[1721627882114,2.3478,3502.2,3501.8,2.48198475]
[1721627882313,2.3478,3502.2,3501.4,1.19818927]
[1721627882314,2.3478,3502.2,3501.6,0.59909463]
[1721627882551,2.3478,3502.2,3501.6,1.15429422]
[1721627882759,2.3478,3502.2,3501.7,2.48199915]
[1721627882927,2.3478,3502.2,3501.6,1.15429422]
[1721627882928,2.3478,3502.2,3501.8,0.99279966]
[1721627883257,2.3497,3502.1,3501.6,0.59909463]
[1721627883414,2.4997,3501.9,3501.7,0.99282072]
[1721627883752,2.4997,3501.9,3501.4,3.59909463]
[1721627883965,2.4997,3501.9,3501.5,3.08117636]
[1721627884264,2.4997,3501.9,3501.6,0.99283269]
[1721627884558,2.4997,3501.9,3501.4,1.95287367]
[1721627884746,2.4997,3501.9,3501.5,2.48210221]
[1721627884914,2.4997,3501.9,3501.6,0.99284088]
[1721627885114,2.4997,3501.9,3501.3,0.59909463]
[1721627885356,2.4997,3501.9,3501.4,2.48210431]
[1721627885660,2.4997,3501.9,3501.5,2.48208362]
[1721627885865,2.4997,3501.9,3501.3,0.59909463]
[1721627886035,5.35529,3501.9,3501.4,3.41603958]
[1721627886356,5.35529,3501.9,3501.5,0.9928432]
[1721627886655,5.35529,3501.9,3501.3,3.59909463]
[1721627886858,5.35529,3501.9,3501.4,2.48211128]
[1721627887163,5.35529,3501.9,3501.3,3.0]
[1721627887367,5.35529,3501.9,3501.4,0.99284674]
[1721627887653,5.35529,3501.9,3501.3,0.44977366]
[1721627887842,5.35529,3501.9,3501.4,0.99284818]
[1721627888046,5.35529,3501.9,3501.3,0.44977366]
[1721627888227,5.35529,3501.9,3501.4,0.99284834]
[1721627888435,5.35529,3501.9,3501.3,0.44977366]
[1721627888642,5.35529,3501.9,3501.4,0.99284744]
[1721627888859,5.35529,3501.9,3501.3,0.44977366]
[1721627889063,2.4997,3501.9,3501.4,0.99284784]
[1721627889272,2.4997,3501.9,3501.3,1.93904561]
[1721627889424,2.4997,3501.9,3501.4,0.25381402]
[1721627896433,2.4997,3501.9,3501.5,0.03747904]
[1721627908114,2.4997,3501.9,3501.5,2.89337904]
[1721627908240,2.2724,3502.2,3501.7,2.85573]
[1721627908446,2.2724,3502.2,3501.8,0.5806225]
[1721627908748,7.48,3502.7,3502.1,1.015]
[1721627908959,7.48,3502.7,3502.2,0.99253068]
[1721627909278,7.48,3502.7,3502.2,2.89253867]
[1721627909479,7.48,3502.7,3502.5,2.85504]
[1721627909807,7.48,3502.7,3502.6,0.03703999]
[1721627910082,2.2724,3502.9,3502.3,0.66690082]
[1721627910283,2.2724,3502.9,3502.6,0.03703999]
[1721627910455,2.2724,3502.9,3502.3,0.66690082]
[1721627910653,2.2724,3502.9,3502.7,0.03700032]
[1721627910850,2.2724,3502.9,3502.2,2.85533]
[1721627911052,2.2724,3502.9,3502.8,0.03696066]
[1721627911255,2.2724,3502.9,3502.2,1.11667448]
[1721627911687,2.2724,3502.9,3502.3,0.037159]
[1721627911979,2.3866,3502.7,3502.3,0.037159]
[1721627912384,2.3866,3502.7,3501.9,3.0]
[1721627912584,2.3866,3502.7,3502.0,0.79436441]
[1721627912956,5.24154,3502.7,3502.1,0.03723835]
[1721627913489,5.24154,3502.7,3501.7,7.34461944]
[1721627913701,5.24154,3502.7,3502.2,0.03591419]
[1721627913906,5.24154,3502.7,3501.7,7.34478436]
[1721627914053,5.24154,3502.7,3502.3,0.03587452]
[1721627914257,6.051164,3502.7,3501.7,7.34478378]
[1721627914488,5.24154,3502.7,3502.4,0.03583485]
[1721627914669,5.24154,3502.7,3501.7,7.34478378]
[1721627914881,2.2506,3502.5,3501.7,3.0]
[1721627915197,2.2506,3502.5,3501.8,0.03607291]
[1721627915403,5.10572,3502.5,3501.8,0.03607291]
[1721627915584,5.10572,3502.5,3501.6,4.48905378]
[1721627915772,5.10572,3502.5,3501.9,0.03603323]
[1721627915972,5.10572,3502.5,3501.7,3.79440284]
[1721627916174,5.10572,3502.5,3501.7,0.79440284]
[1721627916713,5.10572,3502.5,3501.8,0.03607291]
[1721627917004,2.2506,3502.5,3501.8,0.03607291]
[1721627917163,2.2506,3502.5,3501.8,0.76461095]
[1721627918579,5.10571,3502.5,3501.8,0.76461095]
[1721627918980,2.2708,3502.3,3501.8,0.03607291]
[1721627919364,2.2708,3502.3,3501.6,1.48913517]
[1721627919606,2.2708,3502.3,3501.7,0.0361126]
[1721627919978,2.2708,3502.3,3501.6,1.4891577]
[1721627920178,2.2708,3502.3,3501.8,0.03607291]
[1721627920415,2.2708,3502.3,3501.7,1.52521252]
[1721627920560,2.2708,3502.3,3501.9,0.03603323]
[1721627920980,2.2708,3502.3,3501.6,1.48337506]
[1721627921167,2.2708,3502.3,3502.0,0.03599355]
[1721627921679,2.2708,3502.3,3502.1,0.03595387]
[1721627922102,2.2708,3502.3,3501.7,1.48907636]
[1721627922406,2.2708,3502.3,3501.6,1.48337506]
[1721627922407,2.2708,3502.3,3501.8,1.87555441]
[1721627922607,2.2708,3502.3,3501.8,0.88283614]
[1721627922766,2.2708,3502.3,3501.8,0.91890905]
[1721627924862,2.85527,3502.3,3501.8,0.03607291]
[1721627925067,2.3735,3502.1,3501.8,0.03607291]
[1721627925267,2.3735,3502.1,3501.6,0.59909463]
[1721627925506,2.3735,3502.1,3501.9,0.0360466]
[1721627925716,2.3735,3502.1,3501.6,0.59909463]
[1721627925916,2.3735,3502.1,3502.0,0.03600692]
[1721627926587,3.181905,3502.1,3501.5,0.59909463]
[1721627926797,2.3735,3502.1,3502.0,0.03600692]
[1721627926972,2.3735,3502.1,3501.4,0.59909463]
[1721627927173,5.229,3502.1,3501.6,0.03616566]
[1721627927385,2.3823,3502.0,3501.7,0.03612597]
[1721627927819,2.3823,3502.0,3501.2,3.59909463]
[1721627927968,5.23781,3502.0,3501.3,2.48214908]
[1721627928174,2.315,3501.9,3501.4,0.99286789]
[1721627928377,2.315,3501.9,3501.2,4.94187367]
[1721627928378,2.315,3501.8,3501.5,0.03620535]
[1721627928671,2.315,3501.8,3501.2,3.59909463]
[1721627928924,2.315,3501.8,3501.6,0.03619499]
[1721627929084,2.315,3501.8,3501.4,1.48930664]
[1721627929292,2.315,3501.8,3501.7,0.0361553]
[1721627929466,2.315,3501.8,3501.3,2.08839919]
[1721627929671,2.315,3501.8,3501.7,0.0361553]
[1721627929906,2.315,3501.8,3501.5,1.48923454]
[1721627930113,2.315,3501.8,3501.7,0.03616456]
[1721627930703,2.315,3501.8,3501.5,1.48926161]
[1721627931015,2.315,3501.8,3501.6,0.03620425]
[1721627931387,2.315,3501.8,3501.3,0.59909463]
[1721627931589,2.315,3501.8,3501.7,0.03616456]
[1721627931795,2.315,3501.8,3501.5,1.48924374]
[1721627931996,2.315,3501.8,3501.7,0.03616456]
[1721627932170,2.315,3501.8,3501.6,0.03620425]
[1721627932367,2.315,3501.8,3501.3,0.59909463]
[1721627932670,2.315,3501.8,3501.4,2.51843918]
[1721627932912,2.315,3501.8,3501.5,0.99286229]
[1721627933095,2.315,3501.8,3501.4,0.03628363]
[1721627933294,2.315,3501.8,3501.6,0.03620425]
[1721627933474,2.315,3501.8,3501.5,0.03624394]
[1721627933674,2.315,3501.8,3501.3,1.22296011]
[1721627933675,2.315,3501.8,3501.7,0.03616456]
[1721627934188,2.315,3501.8,3501.2,3.59909463]
[1721627934488,2.315,3501.8,3501.7,0.03617127]
[1721627934985,2.315,3501.8,3501.2,3.59909463]
[1721627935182,2.315,3501.8,3501.3,2.48215806]
[1721627935512,2.315,3501.8,3501.4,0.9928635]
[1721627935700,2.315,3501.8,3501.3,0.03633003]
[1721627935900,2.315,3501.8,3501.5,0.03625064]
[1721627936104,2.315,3501.8,3501.4,0.03629034]
[1721627936289,2.315,3501.8,3501.6,0.03621095]
[1721627936612,2.315,3501.8,3501.5,0.03625064]
[1721627936796,2.315,3501.8,3501.7,0.03617127]
[1721627937004,2.315,3501.8,3501.6,0.03553762]
[1721627937188,2.315,3501.8,3501.7,0.03549793]
[1721627937385,2.315,3501.8,3501.3,2.0884216]
[1721627937696,2.315,3501.8,3501.4,2.51779435]
[1721627937900,2.4479,3501.5,3501.4,0.035617]
[1721627938283,5.30382,3501.5,3500.9,1.48951425]
[1721627938484,5.30382,3501.5,3500.7,0.59909463]
[1721627938688,5.30382,3501.5,3501.0,0.0357758]
[1721627939022,2.4351,3501.4,3501.1,0.0357361]
[1721627939378,2.4351,3501.4,3500.6,3.0]
[1721627939625,5.2911,3501.4,3500.7,2.5185289]
[1721627939930,5.29135,3501.1,3500.7,0.03589492]
[1721627940223,2.4351,3500.8,3500.1,0.59909463]
[1721627940512,2.4351,3500.8,3500.0,3.75574195]
[1721627940513,2.4351,3500.8,3500.2,2.4829602]
[1721627940676,2.4351,3500.8,3500.2,0.68377968]
[1721627940997,5.29159,3500.8,3500.2,0.68377968]
[1721627941188,5.29159,3500.8,3500.0,0.59909463]
[1721627941531,5.29159,3500.8,3500.1,2.51929192]
[1721627941681,5.29159,3500.8,3500.2,2.48310928]
[1721627942019,5.29159,3500.8,3500.3,0.0361032]
[1721627942527,5.29159,3500.8,3499.9,5.85721]
[1721627942723,5.29159,3500.8,3500.4,0.03606348]
[1721627942875,5.29159,3500.8,3500.0,2.28449721]
[1721627943075,5.29159,3500.8,3500.5,0.03603046]
[1721627943285,2.4351,3500.8,3500.0,0.79461835]
[1721627943594,2.4351,3500.8,3500.1,3.85024795]
[1721627943807,2.4351,3500.8,3500.2,1.19263866]
[1721627946392,2.4351,3500.8,3500.3,2.85683]
[1721627946732,2.4351,3500.8,3500.4,0.03606657]
[1721627947090,2.4351,3500.8,3500.2,4.01343265]
[1721627947400,2.4351,3500.8,3500.2,1.15649265]
[1721627947584,2.4351,3500.8,3500.3,0.03615055]
[1721627947778,2.4351,3500.8,3500.2,1.15649265]
[1721627948179,2.4351,3500.8,3500.3,0.03615055]
[1721627948411,2.4351,3500.8,3500.2,1.15649265]
[1721627948608,2.4351,3500.8,3500.4,0.03611084]
[1721627948820,2.4351,3500.8,3500.3,0.03615055]
[1721627949030,2.4351,3500.8,3500.5,0.03606391]
[1721627949200,5.29163,3500.8,3500.4,0.03610363]
[1721627949396,5.29163,3500.8,3500.6,0.0360242]
[1721627949397,2.4573,3500.7,3500.6,0.0360242]
[1721627949686,2.4573,3500.7,3499.9,3.0]
[1721627949687,2.988683,3500.7,3499.9,3.0]
[1721627949886,2.988683,3500.7,3500.6,0.0360242]
[1721627949887,2.4573,3500.7,3500.6,0.0360242]
[1721627950112,2.4573,3500.7,3499.9,3.0]
[1721627950299,2.85685,3500.4,3499.5,0.59909463]
[1721627950502,2.85685,3500.4,3500.0,0.03626251]
[1721627950503,2.4573,3500.3,3500.0,0.03626251]
[1721627950704,2.4573,3500.3,3499.4,2.85757]
[1721627950899,2.4573,3500.3,3500.1,0.03622279]
[1721627951221,2.4573,3500.3,3500.2,0.03618306]
[1721627951611,2.4573,3500.3,3499.4,2.85757]
[1721627952234,2.3563,3500.1,3499.1,3.90472146]
[1721627952438,5.21342,3500.1,3499.1,3.30562683]
[1721627952642,2.3563,3500.0,3498.9,2.85798]
[1721627952790,2.3563,3499.9,3498.9,3.672363]
[1721627953515,2.3563,3499.9,3499.0,5.85794]
[1721627954289,2.301,3499.8,3499.0,5.85794]
[1721627954490,5.15833,3499.8,3499.0,3.0]
[1721627954735,5.15833,3499.8,3498.9,3.814383]
[1721627955238,2.4534,3499.7,3498.9,3.814383]
[1721627955993,5.31079,3499.7,3498.9,3.814383]
[1721627956206,5.31079,3499.7,3498.9,6.672413]
[1721627956207,2.4534,3499.7,3498.9,6.672413]
[1721627956530,2.4534,3499.7,3499.0,2.89458988]
[1721627956695,2.4534,3499.7,3499.0,0.03665988]
[1721627956891,2.4534,3499.7,3499.0,2.89457988]
[1721627957121,2.4534,3499.7,3499.0,0.03665988]
[1721627960147,5.31078,3499.7,3499.0,0.03665988]
[1721627961336,2.3562,3499.6,3499.0,0.03665988]
[1721627963507,2.3562,3499.6,3499.1,0.67090729]
[1721627963697,2.3562,3499.6,3499.1,0.70758613]
[1721627964531,2.3562,3499.6,3499.1,0.03667884]
[1721627965130,2.3562,3499.6,3499.2,0.03663909]
[1721627965635,2.3562,3499.6,3499.0,3.0]
[1721627965843,2.3562,3499.6,3499.3,0.03659935]
[1721627966140,2.3562,3499.6,3499.0,3.0]
[1721627966349,2.3562,3499.6,3499.4,0.03655961]
[1721627966498,2.3562,3499.6,3499.0,3.0]
[1721627967237,2.3562,3499.6,3499.1,0.03667884]
[1721627972566,2.3966,3499.5,3499.1,0.03667884]
[1721627972719,2.3966,3499.5,3498.7,3.0]
[1721627972920,2.3966,3499.5,3499.2,0.03663652]
[1721627973122,2.3966,3499.5,3498.8,0.874826]
[1721627973637,2.85772,3499.3,3498.7,3.0]
[1721627973840,7.48,3500.1,3498.9,0.03675577]
[1721627973841,5.28139,3499.2,3498.9,0.03675577]
[1721627974037,2.85779,3499.2,3498.9,0.03675577]
[1721627974250,2.4978,3499.1,3498.9,0.03675577]
[1721627974449,2.4978,3499.1,3498.2,2.85858]
[1721627974759,2.4978,3499.1,3499.0,0.03671602]
[1721627974930,2.4978,3499.1,3498.2,2.85858]
[1721627975346,2.4978,3499.1,3498.3,0.03699431]
[1721627975556,2.4978,3499.1,3498.3,2.89551431]
[1721627975720,2.4978,3499.1,3498.4,3.0]
[1721627975916,2.4978,3499.1,3498.4,4.17541243]
[1721627976150,2.4978,3499.1,3498.5,0.03691479]
[1721627988290,2.4978,3499.1,3498.5,2.89527479]
[1721627991183,2.4978,3499.1,3498.5,0.03691479]
[1721627991405,7.48,3499.3,3499.2,2.85779]
[1721627991543,2.3982,3499.8,3499.5,2.85753]
[1721627991749,2.3982,3499.8,3499.5,2.85747]
[1721627992054,2.3982,3499.8,3499.6,0.03657698]
[1721627992672,2.3982,3499.8,3499.6,2.89403698]
[1721627992852,12.41,3500.6,3499.6,3.28245655]
[1721627992853,2.3735,3500.1,3499.6,3.28245655]
[1721627993055,2.4003,3500.4,3499.7,2.85737]
[1721627993242,2.4003,3500.4,3499.8,0.05713885]
[1721627993447,2.4003,3500.4,3499.9,2.85721]
[1721627993673,2.4003,3500.4,3499.9,2.89362966]
[1721627993873,2.4003,3500.4,3499.9,0.03641966]
[1721627994261,2.4003,3500.4,3499.8,2.8573]
[1721627994475,2.4003,3500.4,3500.0,0.03637993]
[1721627994658,2.4003,3500.4,3499.6,3.38841957]
[1721627994887,2.85701,3500.2,3500.1,0.03634021]
[1721627995092,2.4731,3500.2,3499.3,7.34767136]
[1721627995324,2.4731,3500.2,3499.4,3.85096868]
[1721627995521,2.4731,3500.2,3499.5,3.0]
[1721627995679,2.4731,3500.2,3499.5,3.03652862]
[1721627996409,2.4731,3500.2,3499.5,5.89406862]
[1721627996719,2.4731,3500.2,3499.5,7.0165426]
[1721627997077,2.4731,3500.2,3499.5,4.1590026]
[1721627997430,2.4731,3500.2,3499.6,0.99331326]
[1721627997714,2.4731,3500.2,3499.7,0.03644915]
[1721627998121,2.4731,3500.2,3499.6,2.8574]
[1721627998426,2.4731,3500.2,3499.8,0.03640942]
[1721627998598,2.4731,3500.2,3499.7,0.03644915]
[1721627998786,2.4731,3500.2,3499.9,0.03636969]
[1721627998986,2.4731,3500.2,3499.8,0.03640942]
[1721627999215,2.4731,3500.2,3500.0,0.03632997]
[1721627999415,2.4731,3500.2,3499.9,0.03636969]
[1721627999577,2.4731,3500.2,3500.1,0.03629024]
[1721627999778,2.4731,3500.2,3500.0,0.03632997]
[1721628000006,2.4731,3500.2,3500.1,0.03629024]
[1721628000209,5.863062,3500.2,3500.1,0.03629024]
[1721628000394,8.707532,3500.2,3500.1,0.03629024]
[1721628001286,11.67245825,3500.2,3500.1,0.03629024]
[1721628001523,2.85778,3499.3,3498.3,4.94444188]
[1721628001736,2.85778,3499.3,3498.4,0.99364471]
[1721628001737,2.3836,3499.2,3498.4,0.99364471]
[1721628002079,2.85804,3498.9,3498.1,1.49038413]
[1721628002283,6.799293,3499.2,3498.0,1.49038413]
[1721628002284,2.85822,3498.7,3498.0,1.49038413]
[1721628002504,2.307,3498.6,3497.8,1.49038413]
[1721628002718,2.307,3498.6,3497.6,2.08596188]
[1721628002719,5.16528,3498.6,3497.6,2.08596188]
[1721628002926,5.16528,3498.6,3497.7,2.48425589]
[1721628003092,5.16528,3498.6,3497.6,0.59557775]
[1721628003093,5.16528,3498.6,3497.8,0.99387176]
[1721628003310,2.307,3498.6,3497.7,1.49038413]
[1721628003501,2.307,3498.6,3497.9,2.85885]
[1721628004033,2.307,3498.6,3497.8,2.85891]
[1721628004521,2.307,3498.6,3497.6,0.59557775]
[1721628004522,2.307,3498.6,3497.6,4.34981236]
[1721628004724,5.1653,3498.6,3497.6,2.85905]
[1721628004934,5.1653,3498.6,3497.7,0.99384878]
[1721628005083,2.85838,3498.5,3497.7,0.99384878]
[1721628005282,2.85838,3498.5,3497.6,2.85905]
[1721628005524,3.857342,3498.6,3497.5,2.85]
[1721628005525,2.85846,3498.4,3497.5,2.85]
[1721628005820,2.85846,3498.4,3497.6,0.99391665]
[1721628006152,2.85846,3498.4,3497.5,5.85]
[1721628006299,2.85846,3498.4,3497.6,3.0]
[1721628006622,2.85853,3498.3,3497.5,2.85]
[1721628006821,2.85878,3498.0,3496.9,2.08635092]
[1721628007037,7.48,3498.2,3497.0,0.9940155]
[1721628007257,7.48,3498.2,3497.4,2.85925]
[1721628007425,7.48,3498.6,3498.4,2.85837]
[1721628007739,2.3001,3498.8,3498.2,2.85859]
[1721628007881,2.3001,3498.8,3497.5,3.45469775]
[1721628007882,2.3001,3498.8,3497.8,2.85893]
[1721628008086,2.3001,3498.8,3497.8,3.44281552]
[1721628008295,2.3001,3498.8,3497.9,5.85883]
[1721628008823,5.15822,3498.8,3497.9,3.0]
[1721628008988,2.3001,3498.8,3497.9,5.85885]
[1721628009333,2.3001,3498.8,3498.1,2.85868]
[1721628009625,2.3001,3498.8,3498.2,2.85856]
[1721628010187,2.3001,3498.8,3498.1,3.730441]
[1721628010388,2.3001,3498.8,3498.2,2.85861]
[1721628010881,2.3001,3498.8,3498.0,2.85874]
[1721628011082,2.3001,3498.8,3497.9,5.85884]
[1721628011083,2.3001,3498.8,3498.1,5.85867]
[1721628011288,2.3001,3498.8,3498.1,2.85867]
[1721628011798,2.8582,3498.7,3497.9,3.0]
[1721628011990,0.23001,3498.7,3497.8,2.85893]
[1721628013115,0.23001,3498.7,3497.7,2.85901]
[1721628013423,0.23001,3498.7,3497.6,3.0]
[1721628013424,0.23001,3498.7,3497.8,5.85887]
[1721628013699,0.23001,3498.7,3497.8,3.0]
[1721628013869,0.23001,3498.7,3497.1,0.59557775]
[1721628013870,0.538825,3498.6,3497.1,0.59557775]
[1721628014160,0.23001,3498.7,3496.8,2.85974]
[1721628014161,2.3772,3498.0,3496.8,2.85974]
[1721628014472,2.85902,3497.7,3496.7,2.85983]
[1721628014624,3.17054943,3497.7,3496.7,2.85983]
[1721628015350,2.3772,3497.5,3496.8,0.02818929]
[1721628015562,2.85931,3497.4,3496.3,2.86016]
[1721628015853,5.23641,3497.5,3496.5,2.85993]
[1721628016224,2.3772,3497.5,3496.6,0.02826889]
[1721628016546,2.3772,3497.5,3497.3,2.85934]
[1721628016850,2.85853,3498.3,3497.3,2.85934]
[1721628016851,2.3766,3498.1,3497.3,2.85934]
[1721628017009,2.3766,3498.1,3497.6,2.85908]
[1721628017209,2.3766,3498.1,3497.5,2.85918]
[1721628017461,2.3766,3498.1,3497.7,0.027947]
[1721628017645,2.3766,3498.1,3497.0,3.0]
[1721628017646,3.36226,3498.1,3497.6,0.02798678]
[1721628017853,3.36226,3498.1,3497.8,0.02790723]
[1721628018010,2.85884,3498.0,3497.0,3.0]
[1721628018361,2.85884,3498.0,3497.1,0.02816419]
[1721628018362,2.8591,3497.6,3497.1,0.02816419]
[1721628018522,2.2507,3498.0,3497.1,0.02816419]
[1721628018523,0.28591,3497.5,3497.1,0.02816419]
[1721628018843,2.2507,3498.0,3496.5,5.2603]
[1721628019081,7.48,3498.2,3496.7,0.59557775]
[1721628019208,7.48,3498.2,3497.6,2.85903]
[1721628019410,2.2546,3498.5,3497.7,0.02792907]
[1721628019650,2.2546,3498.5,3496.8,3.45525775]
[1721628019651,2.2546,3498.5,3497.4,2.85926]
[1721628019815,2.500282,3498.4,3497.5,2.88715787]
[1721628020228,5.358732,3498.4,3497.5,2.88715787]
[1721628020755,2.2546,3498.5,3497.5,0.02799787]
[1721628020938,2.2546,3498.5,3497.8,2.85893]
[1721628021104,2.2546,3498.5,3497.1,0.65274823]
[1721628021321,7.48,3498.6,3497.5,0.59557775]
[1721628021657,2.353,3499.0,3498.6,2.85822]
[1721628021859,7.48,3499.4,3498.4,2.8584]
[1721628021860,7.48,3499.4,3499.1,2.8578]
[1721628022164,7.48,3499.4,3499.2,0.02924381]
[1721628022764,7.48,3499.4,3498.5,3.0]
[1721628023069,7.48,3499.4,3499.2,2.85779]
[1721628023420,7.48,3499.4,3499.3,0.02920123]
[1721628023621,12.41,3499.9,3499.1,2.8578]
[1721628023866,12.41,3499.9,3499.2,2.88696224]
[1721628024172,12.41,3499.9,3499.2,0.02919224]
[1721628024461,2.21834,3499.8,3499.2,2.88691224]
[1721628024620,2.21834,3499.8,3499.3,0.02914966]
[1721628024819,2.21834,3499.8,3499.2,2.85772]
[1721628025026,12.41,3499.9,3499.3,2.88684966]
[1721628025254,12.41,3499.9,3499.3,0.02914966]
[1721628025434,12.41,3499.9,3498.6,1.135839]
[1721628025635,7.48,3500.0,3499.1,2.85787]
[1721628025963,7.48,3500.0,3499.2,0.02918621]
[1721628026266,8.743038,3500.0,3499.2,0.02918621]
[1721628027559,8.743038,3500.0,3499.3,2.85769]
[1721628027766,1.263038,3500.0,3499.3,2.85769]
[1721628027959,2.2934,3500.1,3499.4,2.8576]
[1721628028278,2.2934,3500.1,3499.6,2.85746]
[1721628028463,2.2934,3500.1,3499.7,2.85737]
[1721628029075,7.48,3500.3,3499.8,2.85725]
[1721628029237,7.48,3500.3,3498.9,3.0]
[1721628029238,7.48,3500.3,3499.6,2.85746]
[1721628029441,7.48,3500.3,3499.3,3.0]
[1721628029442,7.48,3500.3,3499.9,2.85721]
[1721628029681,7.48,3500.3,3500.0,0.03351556]
[1721628029999,2.3334,3500.7,3500.0,0.03351556]
[1721628030000,2.3334,3500.7,3500.1,2.85704]
[1721628030343,2.3334,3500.7,3500.2,2.89027283]
[1721628030543,7.48,3500.8,3500.3,2.85687]
[1721628030743,7.48,3500.8,3500.1,2.85705]
[1721628030967,7.48,3500.8,3500.4,0.03316003]
[1721628031139,7.48,3500.8,3499.9,2.85721]
[1721628031354,7.48,3500.8,3500.2,2.85695]
[1721628031556,7.48,3500.8,3500.0,2.89045864]
[1721628031739,2.85658,3500.7,3500.3,0.0332084]
[1721628031939,7.48,3500.8,3499.7,3.0]
[1721628031940,1.319299,3500.6,3499.7,3.0]
[1721628032206,2.428,3500.5,3499.7,3.0]
[1721628032518,2.428,3500.5,3499.8,0.03344517]
[1721628032951,2.428,3500.5,3499.6,5.85746]
[1721628033155,2.428,3500.5,3499.9,0.03339551]
[1721628033350,5.2848,3500.5,3499.6,3.0]
[1721628033687,2.85682,3500.4,3499.6,0.585762]
[1721628033855,2.428,3500.5,3499.7,0.03349483]
[1721628034056,2.85683,3500.4,3499.7,0.03349483]
[1721628034740,2.85683,3500.4,3499.6,0.585762]
[1721628034741,2.428,3500.5,3497.8,1.48894438]
[1721628034742,2.3736,3499.8,3497.8,1.48894438]
[1721628034940,2.3736,3499.8,3497.9,0.14889444]
[1721628034941,0.523089,3499.7,3497.9,0.14889444]
[1721628035181,2.3736,3499.8,3497.9,5.3491597]
[1721628035182,2.85748,3499.6,3497.9,5.3491597]
[1721628035390,8.2309,3499.8,3498.5,2.85836]
[1721628035676,2.8574,3499.7,3498.4,2.85844]
[1721628035843,2.85747,3499.6,3498.5,2.85835]
[1721628036700,2.85747,3499.6,3498.2,2.8586]
[1721628036701,2.85757,3499.5,3498.2,2.8586]
[1721628036891,2.8574,3499.7,3498.3,6.69438]
[1721628037097,5.2309,3499.8,3498.5,2.8583]
[1721628037098,2.8575,3499.6,3498.5,2.8583]
[1721628037263,2.85755,3499.5,3498.3,3.83586]
[1721628037463,2.85773,3499.3,3498.3,3.83586]
[1721628037667,2.85782,3499.2,3498.3,3.28586]
[1721628037869,2.85782,3499.2,3498.4,0.614453]
[1721628038108,2.85788,3499.1,3498.4,0.614453]
[1721628041181,10.33763,3499.4,3498.4,0.614453]
[1721628041182,2.85796,3499.0,3498.4,0.614453]
[1721628041373,2.85796,3499.0,3498.0,3.0]
[1721628041572,2.85796,3499.0,3498.1,0.55]
[1721628042314,2.85811,3498.9,3498.0,3.0]
[1721628042467,2.4802,3498.9,3498.0,4.156793]
[1721628042673,5.33826,3498.9,3498.0,4.156793]
[1721628043310,2.85815,3498.8,3498.0,4.156793]
[1721628043770,2.85815,3498.8,3498.0,1.156793]
[1721628043970,2.4802,3498.9,3497.5,2.85915]
[1721628043971,2.85838,3498.5,3497.5,2.85915]
[1721628044171,2.85838,3498.5,3497.3,6.34491775]
[1721628044172,2.85845,3498.4,3497.6,0.55]
[1721628044496,7.48,3498.7,3497.3,5.74]
[1721628044497,2.85863,3498.2,3497.3,2.89]
[1721628044806,2.85869,3498.1,3497.3,2.89]
[1721628045170,2.85869,3498.1,3497.0,2.85955]
[1721628045486,2.85878,3498.0,3497.1,0.85693]
[1721628047176,2.85878,3498.0,3497.1,3.85693]
[1721628048095,2.85865,3498.2,3497.1,6.71643]
[1721628048487,2.85871,3498.1,3497.1,6.71643]
[1721628050979,2.85878,3498.0,3497.1,3.85693]
[1721628051181,2.85878,3498.0,3497.1,0.85693]
[1721628051593,5.17905,3498.2,3497.1,3.71638]
[1721628051798,5.17905,3498.2,3497.2,0.957604]
[1721628052537,2.3204,3498.2,3497.2,0.957604]
[1721628052835,5.17904,3498.2,3497.2,0.957604]
[1721628053198,2.85869,3498.1,3497.2,0.957604]
[1721628053999,2.85879,3498.0,3497.2,0.957604]
[1721628056323,2.3204,3498.2,3497.2,0.957604]
[1721628056324,5.17905,3498.2,3497.2,0.957604]
[1721628056522,6.68567365,3498.2,3497.2,0.957604]
[1721628057094,2.85871,3498.1,3497.2,0.957604]
[1721628060360,5.17903,3498.2,3497.2,0.957604]
[1721628060653,5.17903,3498.2,3497.3,2.85933]
[1721628060825,2.85869,3498.1,3497.2,0.957604]
[1721628064159,2.85878,3498.0,3497.2,0.957604]
[1721628064339,6.444923,3498.2,3497.0,5.85958]
[1721628064514,2.859,3497.8,3497.0,3.0]
[1721628064711,3.586303,3498.2,3496.8,2.85]
[1721628064712,6.444983,3498.2,3496.8,2.85]
[1721628064913,6.444983,3498.2,3496.3,2.86015]
[1721628064914,2.85935,3497.3,3496.3,2.86015]
[1721628065220,2.85958,3497.1,3496.1,3.14621]
[1721628065540,2.85958,3497.1,3496.1,2.86031]
[1721628065724,2.8596,3497.0,3495.9,2.4398]
[1721628066048,2.8596,3497.0,3496.0,2.86034]
[1721628066352,2.8596,3497.0,3496.1,0.816063]
[1721628066747,2.8596,3497.0,3496.1,3.816063]
[1721628067118,2.85968,3496.9,3495.8,2.86049]
[1721628067319,2.85968,3496.9,3495.9,5.86047]
[1721628067530,2.3299,3496.8,3496.0,3.0]
[1721628067735,5.18966,3496.8,3496.0,3.0]
[1721628067942,5.18966,3496.8,3495.8,3.0]
[1721628068145,5.18966,3496.8,3495.8,6.732694]